Body Name,Body,Service Level,Expense Type,Expense Code,Narrative,Date,Transaction Number,Amount,Capital and Revenue,Supplier Name,Supplier ID
South Ribble Council,http://statistics.data.gov.uk/doc/local-authority/30UN,Development Enterprise & Comm Mgnt,Other Misc,4851,"Leyland Christmas Festival - Saturday 16th November 2016 Stage hire, present and promo team 1 week of promotional trails",13/01/2017,0000429212,"2,000.00",Revenue,107 The Bee,131130
South Ribble Council,http://statistics.data.gov.uk/doc/local-authority/30UN,Housing,Cap Grant- Improve Grants,C570,DFG WORKS AT ADDRESS REDACTED,18/01/2017,0000429230,"1,429.00",Revenue,ABBI PROPERTY SERVICES LTD,131357
South Ribble Council,http://statistics.data.gov.uk/doc/local-authority/30UN,Housing,Cap Grant- Improve Grants,C570,DFG WORKS ADDRESS REDACTED,18/01/2017,0000429231,"1,900.00",Revenue,ABBI PROPERTY SERVICES LTD,131357
South Ribble Council,http://statistics.data.gov.uk/doc/local-authority/30UN,Planning,Professional Fees,4510,ADAS Consultation Response to Planning Application ref 07/2016/0469/OUT planning application for an agricultural workers,18/01/2017,0000429226,409.00,Revenue,ADAS UK LTD,00118727
South Ribble Council,http://statistics.data.gov.uk/doc/local-authority/30UN,Area 2 - Waste Transport/Eastern & Central Teams,External Contractors Charges,4570,SPEC REPAIR - AE14AYG - JFC8056,13/01/2017,0000429221,266.44,Revenue,AEBI SCHMIDT UK LTD,00085672
South Ribble Council,http://statistics.data.gov.uk/doc/local-authority/30UN,Shared Assurance Services,Subs to Statutory Bodies,4721,NAMES REDACTED Annual Membership fees for Alarm 1st January - 31st December 2017 -  388 + VAT,18/01/2017,0000429319,388.00,Revenue,ALARM,00014630
South Ribble Council,http://statistics.data.gov.uk/doc/local-authority/30UN,Revenues Plus,Financial,4811,PO transactions,11/01/2017,0000429065,"1,107.15",Revenue,ALLPAY LTD,00122276
South Ribble Council,http://statistics.data.gov.uk/doc/local-authority/30UN,Revenues Plus,Financial,4811,paypoint trans,11/01/2017,0000429065,177.76,Revenue,ALLPAY LTD,00122276
South Ribble Council,http://statistics.data.gov.uk/doc/local-authority/30UN,Revenues Plus,Financial,4811,webconn,11/01/2017,0000429065,46.05,Revenue,ALLPAY LTD,00122276
South Ribble Council,http://statistics.data.gov.uk/doc/local-authority/30UN,Shared Assurance Services,Professional Fees,4510,Risk Management Survey - Astley Hall Net - 1950 VAT- 390,04/01/2017,0000428931,"1,950.00",Revenue,Aon UK Limited Accounts Division,132142
South Ribble Council,http://statistics.data.gov.uk/doc/local-authority/30UN,Shared Assurance Services,Professional Fees,4510,Risk Management Survey- Civic Centre Net- 2250 VAT- 450,04/01/2017,0000428931,"2,250.00",Revenue,Aon UK Limited Accounts Division,132142
South Ribble Council,http://statistics.data.gov.uk/doc/local-authority/30UN,Housing,Cap Grant- Improve Grants,C570,DFG adaptation work at ADDRESS REDACTED as per your quote of 3420.00,18/01/2017,0000429233,"3,420.00",Revenue,APG DOMESTIC SERVICES,00061463
South Ribble Council,http://statistics.data.gov.uk/doc/local-authority/30UN,Area 1 - Penwortham Western Parishes,Grounds Maintanance,2040,PAINTING OF 2 BUS SHELTERS JUNCTION CHORLEY ROAD AND WALTON GREEN WALTON LE DALE HILL ROAD SOUTH,11/01/2017,0000428920,960.00,Revenue,ARK WELDING LTD,130946
South Ribble Council,http://statistics.data.gov.uk/doc/local-authority/30UN,Area 1 - Penwortham Western Parishes,Capital Expenditure,C230,Refurbishment and painting of bus shelter on Liverpool Road Longton and the installation of a perch seat.,11/01/2017,0000428921,980.00,Revenue,ARK WELDING LTD,130946
South Ribble Council,http://statistics.data.gov.uk/doc/local-authority/30UN,Information Services,Peripherals,4248,Rental of E-GENDA System (incl Maintenance & Support) for period 01/02/17 - 31/01/18,27/01/2017,0000429512,"4,720.00",Revenue,ASSOCIATED KNOWLEDGE SYSTEMS LTD,00095251
South Ribble Council,http://statistics.data.gov.uk/doc/local-authority/30UN,Property Services,Rep & Maint Premises,2020,Please fit a new aluminium door handle and new lock to the bottom of the door at unit 1 Momentum as per quotation.,27/01/2017,0000429495,275.00,Revenue,AVALON DOORS & AWNINGS LTD,131051
South Ribble Council,http://statistics.data.gov.uk/doc/local-authority/30UN,Area 2 - Waste Transport/Eastern & Central Teams,External Contractors Charges,4570,Supply and fit sliding skid kit to trailer - PO1 - JFC7151 - PD Part code KS2648,27/01/2017,0000429428,424.00,Revenue,BARLOW TRAILERS LTD,00016120
South Ribble Council,http://statistics.data.gov.uk/doc/local-authority/30UN,Area 2 - Waste Transport/Eastern & Central Teams,External Contractors Charges,4570,sliding skid kit,27/01/2017,0000429530,310.00,Revenue,BARLOW TRAILERS LTD,00016120
South Ribble Council,http://statistics.data.gov.uk/doc/local-authority/30UN,Information Services,Capital Expenditure,C234,RedHat 5 to 6 migration service,13/01/2017,0000429213,"4,750.00",Revenue,CAPITA BUSINESS SERVICES LTD,00122179
South Ribble Council,http://statistics.data.gov.uk/doc/local-authority/30UN,Environmental Health,Licence Fees,488B,4th qtr,18/01/2017,0000429292,"1,125.00",Revenue,Carr Street Community Centre,130312
South Ribble Council,http://statistics.data.gov.uk/doc/local-authority/30UN,Property Services,Rep & Maint Premises,2020,Contract for 2016/212017 for the Civic Centre site details D562822 - incl 1 x  CBR filter change and 1 x  Sediment Filter Change,20/01/2017,0000429312,329.00,Revenue,CASCADE WATER SYSTEMS LTD,00063924
South Ribble Council,http://statistics.data.gov.uk/doc/local-authority/30UN,Homelessness,Contributions,4730,Block booking ADDRESS REDACTED December 2016 31 days  1093.68 + VAT,04/01/2017,0000429007,"1,093.68",Revenue,CHORLEY BOROUGH COUNCIL,00017352
South Ribble Council,http://statistics.data.gov.uk/doc/local-authority/30UN,Shared Financial Services,External Contractors Charges,4570,Provision of Shared Financial Services for 2016/17,27/01/2017,0000429375,"150,000.00",Revenue,CHORLEY BOROUGH COUNCIL,00017352
South Ribble Council,http://statistics.data.gov.uk/doc/local-authority/30UN,Area 2 - Waste Transport/Eastern & Central Teams,Materials General,4040,credit raised to cancel inv,11/01/2017,0000428896,550.17,Revenue,CICELEY COMMERCIALS LTD,00059381
South Ribble Council,http://statistics.data.gov.uk/doc/local-authority/30UN,Environmental Health,Operational Furniture & Equip,4010,Trojan2 Noise Nuisance Recorder Kit with CR199B and CR515 as per NAME REDACTED,11/01/2017,0000429135,"4,561.25",Revenue,CIRRUS RESEARCH PLC,131450
South Ribble Council,http://statistics.data.gov.uk/doc/local-authority/30UN,Environmental Health,Operational Furniture & Equip,4010,"COLT 4 Smoke Canister	C4-Aerosols-10	62.00	1 4� Drain Bag Stopper	 DM-DGS-6 26.70  2  53.40 6� Drain Bag Stopper DM-DGS-4",11/01/2017,0000429103,265.20,Revenue,CONCEPT ENGINEERING LTD,00019431
South Ribble Council,http://statistics.data.gov.uk/doc/local-authority/30UN,Revenues Plus,Postage,4291,Mail Services,06/01/2017,0000429034,263.68,Revenue,CRITIQOM,131053
South Ribble Council,http://statistics.data.gov.uk/doc/local-authority/30UN,Revenues Plus,Postage,4291,Mail Services,06/01/2017,0000429049,364.01,Revenue,CRITIQOM,131053
South Ribble Council,http://statistics.data.gov.uk/doc/local-authority/30UN,Revenues Plus,Postage,4291,Mail Services,18/01/2017,0000429224,287.96,Revenue,CRITIQOM,131053
South Ribble Council,http://statistics.data.gov.uk/doc/local-authority/30UN,HR & Communications,Training Expense-Course Fees,1408,FULL BIKE PACKAGE FOR NAME REDACTED,11/01/2017,0000429096,450.00,Revenue,CYCLESCHEME CO  UK,130237
South Ribble Council,http://statistics.data.gov.uk/doc/local-authority/30UN,HR & Communications,Training Expense-Course Fees,1408,helmets,11/01/2017,0000429096,20.00,Revenue,CYCLESCHEME CO  UK,130237
South Ribble Council,http://statistics.data.gov.uk/doc/local-authority/30UN,Information Services,Capital Expenditure,C234,QUO-02997-XoV1  -  Sophos Premium Support entire Sophos Estate (including Endpoint and UTM`s) Start 06/01/17 05/01/18,20/01/2017,0000429382,"1,500.00",Revenue,CYGNIA TECHNOLOGIES LTD,131014
South Ribble Council,http://statistics.data.gov.uk/doc/local-authority/30UN,Information Services,Capital Expenditure,C234,"SG 210 Web Protection, Start date 06/01/17 - 05/01/18",20/01/2017,0000429382,693.90,Revenue,CYGNIA TECHNOLOGIES LTD,131014
South Ribble Council,http://statistics.data.gov.uk/doc/local-authority/30UN,Regeneration,Capital Expenditure,C234,"As per quote no. QUO-02997-XOV1, SG 210 Security Appliance - EU/UK power cord",25/01/2017,0000429383,"1,154.30",Revenue,CYGNIA TECHNOLOGIES LTD,131014
South Ribble Council,http://statistics.data.gov.uk/doc/local-authority/30UN,Regeneration,Capital Expenditure,C234,SG 210 Premium Support Start date 06/01/17 - 05/01/18,25/01/2017,0000429383,251.00,Revenue,CYGNIA TECHNOLOGIES LTD,131014
South Ribble Council,http://statistics.data.gov.uk/doc/local-authority/30UN,Property Services,Rep & Maint Premises,2020,2016 / 2017 annual contract  for Vent plant maintenance/Cleaning/AHU Maintenance at the civic centre.,11/01/2017,0000429136,495.00,Revenue,DAIKIN APPLIED SERVICE,130324
South Ribble Council,http://statistics.data.gov.uk/doc/local-authority/30UN,Healthy Communities,Other Misc,4851,Delivery of cycling activity and bike maintenance - between September and January 2017,25/01/2017,0000429479,315.00,Revenue,NAME REDACTED,132006
South Ribble Council,http://statistics.data.gov.uk/doc/local-authority/30UN,Area 2 - Waste Transport/Eastern & Central Teams,Materials General,4040,HEATER MOTOR + SWITCH - VN10DKL -8058,13/01/2017,0000429133,318.16,Revenue,DENNIS EAGLE LTD,00019774
South Ribble Council,http://statistics.data.gov.uk/doc/local-authority/30UN,Development Enterprise & Comm Mgnt,Advertising,4842,Purchase of model engine,11/01/2017,0000429154,500.00,Revenue,Dermott Hogan,132149
South Ribble Council,http://statistics.data.gov.uk/doc/local-authority/30UN,Regeneration,Capital Expenditure,C234,"Supply and install public art, gateway feature and bus shelters at station road, bamber bridge 202,500 + VAT",06/01/2017,0000428884,"50,000.00",Revenue,DP STRUCTURES LTD,00120485
South Ribble Council,http://statistics.data.gov.uk/doc/local-authority/30UN,Regeneration,Capital Expenditure,C234,"Supply and install public art, gateway feature and bus shelters at station road, bamber bridge 202,500 + VAT",06/01/2017,0000428887,"4,000.00",Revenue,DP STRUCTURES LTD,00120485
South Ribble Council,http://statistics.data.gov.uk/doc/local-authority/30UN,Regeneration,Capital Expenditure,C230,costal community`s and loop.,06/01/2017,0000428908,"7,000.00",Revenue,DP STRUCTURES LTD,00120485
South Ribble Council,http://statistics.data.gov.uk/doc/local-authority/30UN,Regeneration,Capital Expenditure,C234,"Supply and install public art, gateway feature and bus shelters at station road, bamber bridge 202,500 + VAT",06/01/2017,0000428967,"10,010.00",Revenue,DP STRUCTURES LTD,00120485
South Ribble Council,http://statistics.data.gov.uk/doc/local-authority/30UN,Information Services,Peripherals,4260,Peripherals ,11/01/2017,0000429132,9.68,Revenue,EE Ltd,131653
South Ribble Council,http://statistics.data.gov.uk/doc/local-authority/30UN,Information Services,Peripherals,4260,Peripherals ,11/01/2017,0000429132,"2,362.25",Revenue,EE Ltd,131653
South Ribble Council,http://statistics.data.gov.uk/doc/local-authority/30UN,Regeneration,Other Misc,4851,Re-development of the South Ribble VCFS Website,11/01/2017,0000428966,288.00,Revenue,Enterprize Web Design & Print Limited,131440
South Ribble Council,http://statistics.data.gov.uk/doc/local-authority/30UN,Information Services,Peripherals,4248,"ArcGIS Maintenance renewal as per quote QUO-12496-Y4T5M7, for period 06/01/17 - 05/01/18",13/01/2017,0000429205,"12,803.00",Revenue,ESRI (UK) LTD,00053565
South Ribble Council,http://statistics.data.gov.uk/doc/local-authority/30UN,Area 2 - Waste Transport/Eastern & Central Teams,Materials General,4040,"1 FILTER KIT, 1 REAR LAMP, 2 NUMBER PLATE LIGHTS, 2 FRONT LAMP COVERS, 6 BEARINGS - PO16HMU - JFC7741",18/01/2017,0000429274,393.27,Revenue,F R SHARROCK LTD,00034539
South Ribble Council,http://statistics.data.gov.uk/doc/local-authority/30UN,Area 2 - Waste Transport/Eastern & Central Teams,Balance Sheet,0030,RECYCLING RETENTION CLAIM BACK - JULY - DECEMBER 2016,13/01/2017,0000429129,"21,699.06",Revenue,FCC Environment Services (UK) Ltd,131612
South Ribble Council,http://statistics.data.gov.uk/doc/local-authority/30UN,Area 2 - Waste Transport/Eastern & Central Teams,Balance Sheet,0030,REFUSE RETENTION CLAIM BACK JULY - DECEMBER 2016,13/01/2017,0000429129,"15,356.14",Revenue,FCC Environment Services (UK) Ltd,131612
South Ribble Council,http://statistics.data.gov.uk/doc/local-authority/30UN,Area 2 - Waste Transport/Eastern & Central Teams,Balance Sheet,0030,CLINICAL RETENTION CLAIM BACK JULY - DECEMBER 2016,13/01/2017,0000429129,150.16,Revenue,FCC Environment Services (UK) Ltd,131612
South Ribble Council,http://statistics.data.gov.uk/doc/local-authority/30UN,Area 2 - Waste Transport/Eastern & Central Teams,Processing-Internal,4211,12 MONTHS CONTRACT (up front) - 60 Tracking units,13/01/2017,0000429095,"9,133.20",Revenue,FLEETCHECK LTD,130457
South Ribble Council,http://statistics.data.gov.uk/doc/local-authority/30UN,HR & Communications,Advertising,4848,PURCHASE OF NEW BRIDGE CAMERA FOR PR,20/01/2017,0000429389,274.99,Revenue,FRANK WILKINSON CAMERAS LTD T/A WILKINSO,00066442
South Ribble Council,http://statistics.data.gov.uk/doc/local-authority/30UN,Area 3 - Parks/Leyland East West,Professional Fees,4510,ins costs agreed by NAME REDACTED,04/01/2017,0000428812,311.29,Revenue,FRIENDS OF HURST GRANGE PARK,00113405
South Ribble Council,http://statistics.data.gov.uk/doc/local-authority/30UN,Regeneration,Peripherals,4241,"4 printheads for the HP T7100 plotter, ref CH645A, CH646A, CH647A,CH648A",11/01/2017,0000429093,545.32,Revenue,GCS UK ASSOCIATES LTD,130671
South Ribble Council,http://statistics.data.gov.uk/doc/local-authority/30UN,Regeneration,Peripherals,4241,"4 printheads for the HP T7100 plotter, ref CH645A, CH646A, CH647A,CH648A 2nd order",25/01/2017,0000429245,545.32,Revenue,GCS UK ASSOCIATES LTD,130671
South Ribble Council,http://statistics.data.gov.uk/doc/local-authority/30UN,Area 2 - Waste Transport/Eastern & Central Teams,External Contractors Charges,4570,WINTER SERVICE - JFC7749 - PO11BND - PD,04/01/2017,0000428968,"3,002.61",Revenue,GIBSONS GARDEN MACHINERY LTD,00059051
South Ribble Council,http://statistics.data.gov.uk/doc/local-authority/30UN,Area 2 - Waste Transport/Eastern & Central Teams,Materials General,4040,12 BOTTOM BLADES - BIN 1265 - BO,20/01/2017,0000428991,287.64,Revenue,GIBSONS GARDEN MACHINERY LTD,00059051
South Ribble Council,http://statistics.data.gov.uk/doc/local-authority/30UN,Property Services,Rep & Maint Premises,2020,To undertake roofing works to the civic centre kitchen roof as detailed in your quotation SRBC 001,11/01/2017,0000429130,"1,653.90",Revenue,GLENN SLATER CONTRACTORS LTD,131181
South Ribble Council,http://statistics.data.gov.uk/doc/local-authority/30UN,Property Services,Rep & Maint Premises,2020,Please undertake the work at Hurst Grange Park Old Coach House as detailed in your quotation SRBC02.,11/01/2017,0000429131,"1,717.72",Revenue,GLENN SLATER CONTRACTORS LTD,131181
South Ribble Council,http://statistics.data.gov.uk/doc/local-authority/30UN,Housing,Contributions,4730,Gas appliance repairs for winter warmth scheme,18/01/2017,0000429356,"1,030.19",Revenue,GOS Heating Ltd,131387
South Ribble Council,http://statistics.data.gov.uk/doc/local-authority/30UN,Housing,Contributions,4730,Gas servicing for winter warmth scheme,18/01/2017,0000429357,"1,170.00",Revenue,GOS Heating Ltd,131387
South Ribble Council,http://statistics.data.gov.uk/doc/local-authority/30UN,Revenues Plus,Professional Fees,4510,Legal Fees,13/01/2017,0000429193,"13,050.00",Revenue,Greenhalgh Kerr,132061
South Ribble Council,http://statistics.data.gov.uk/doc/local-authority/30UN,Revenues Plus,Professional Fees,4510,land reg,13/01/2017,0000429193,3.00,Revenue,Greenhalgh Kerr,132061
South Ribble Council,http://statistics.data.gov.uk/doc/local-authority/30UN,Area 2 - Waste Transport/Eastern & Central Teams,Materials General,4040,Filters for Stores,18/01/2017,0000429273,448.48,Revenue,H & J SERVICES LTD,00114446
South Ribble Council,http://statistics.data.gov.uk/doc/local-authority/30UN,Democratic Services,Other Misc,4970,Halarose workshop Winter UGM 2017 NAMES REDACTED to attend Wednesday 18th January and Thursday 19th January ,25/01/2017,0000429467,800.00,Revenue,HALAROSE LTD,00024358
South Ribble Council,http://statistics.data.gov.uk/doc/local-authority/30UN,Neighbourhood Admin & Support,Vehicle Running Costs,3132,15000ltrs Diesel @ 97.4 per ltr.,18/01/2017,0000429222,"14,571.00",Revenue,Hall Fuels trading name of WFL (UK) Ltd,00116758
South Ribble Council,http://statistics.data.gov.uk/doc/local-authority/30UN,Planning,Publications,4140,Renew your subscription for a 5 user and 5 magazines at the cost of 495.00,18/01/2017,0000429246,495.00,Revenue,HAYMARKET MEDIA GROUP LTD,00023346
South Ribble Council,http://statistics.data.gov.uk/doc/local-authority/30UN,Property Services,Rep & Maint Premises,2020,Replacement heater for ADDRESS REDACTED. Remove two redundant gas unit heaters and replace with 1 Renzor 35 KW.,27/01/2017,0000429396,"3,780.00",Revenue,Heating & Cooling Installations Ltd,132138
South Ribble Council,http://statistics.data.gov.uk/doc/local-authority/30UN,Property Services,Rep & Maint Premises,2020,"Replacement heater for ADDRESS REDACTED Price to include room sealed stainless steel flue system, smartcom controller,",27/01/2017,0000429417,"6,075.00",Revenue,Heating & Cooling Installations Ltd,132138
South Ribble Council,http://statistics.data.gov.uk/doc/local-authority/30UN,Property Services,Rep & Maint Premises,2020,Reimbursement for electrical works carried out by AES electrical contractors. Arranged and paid for by the HWCC management,04/01/2017,0000428985,"1,997.00",Revenue,HIGHER WALTON COMMUNITY CENTRE,00070535
South Ribble Council,http://statistics.data.gov.uk/doc/local-authority/30UN,Environmental Health,Licence Fees,488B,4th qtr,18/01/2017,0000429293,"1,000.00",Revenue,HIGHER WALTON COMMUNITY CENTRE,00070535
South Ribble Council,http://statistics.data.gov.uk/doc/local-authority/30UN,Revenues Plus,Stationery,4130,"15,000 Council Tax envelopes. white, self-seal C5 10,000 Green Chevron self -seal envelopes",13/01/2017,0000429210,516.25,Revenue,HOUND ENVELOPES,00113366
South Ribble Council,http://statistics.data.gov.uk/doc/local-authority/30UN,Scrutiny,Consultancy Fees,4541,"Scrutiny Review of Licensing - 12 days additional support from NAME REDACTED @ 500 per day, NAMES REDACTED",04/01/2017,0000428828,"9,503.55",Revenue,IDEA IMPROVEMENT & DEV AGENCY for LOCAL GOV,00012111
South Ribble Council,http://statistics.data.gov.uk/doc/local-authority/30UN,HR & Communications,Agency Fees,1121,NAME REDACTED WORK FOR 14 DAYS 5TH - 22ND DECEMBER 2016,11/01/2017,0000429170,"9,150.48",Revenue,IE RECRUITMENT,132140
South Ribble Council,http://statistics.data.gov.uk/doc/local-authority/30UN,HR & Communications,Agency Fees,1121,CELWOOD WORK FOR 8 DAYS WC 12TH DECEMBER 2016 WC 19TH DECEMBER 2016,11/01/2017,0000429171,"4,400.00",Revenue,IE RECRUITMENT,132140
South Ribble Council,http://statistics.data.gov.uk/doc/local-authority/30UN,Development Enterprise & Comm Mgnt,Other Misc,4851,"Christmas lights on Leyland Roundabout - erect, connect and remove all items in January 1000",13/01/2017,0000429092,"1,000.00",Revenue,"Illuminations Department, Blackpool Council",131663
South Ribble Council,http://statistics.data.gov.uk/doc/local-authority/30UN,Information Services,Peripherals,4246,Annual subscription for Corporate Member of IRMS for period 01/01/17 - 31/12/17,04/01/2017,0000428980,250.00,Revenue,INFORMATION & RECORD MANAGEMENT SOCIETY,130889
South Ribble Council,http://statistics.data.gov.uk/doc/local-authority/30UN,Information Services,Peripherals,4246,attributable portion of the bulletin,04/01/2017,0000428980,50.00,Revenue,INFORMATION & RECORD MANAGEMENT SOCIETY,130889
South Ribble Council,http://statistics.data.gov.uk/doc/local-authority/30UN,Information Services,Peripherals,4243,"2 x Red Hat Enterprise Server, Standard Licence - 1 year renewal  20/01/17 - 19/01/18",27/01/2017,0000429523,928.58,Revenue,INSIGHT UK,00120744
South Ribble Council,http://statistics.data.gov.uk/doc/local-authority/30UN,Information Services,Peripherals,4243,CoreCAL ALNG LicSAPk MVL UsrCAL,27/01/2017,0000429524,"6,606.75",Revenue,INSIGHT UK,00120744
South Ribble Council,http://statistics.data.gov.uk/doc/local-authority/30UN,Information Services,Peripherals,4243,WinRmtDsktpSrvcsCAL ALNG LicSAPk MVL UsrCAL,27/01/2017,0000429524,"1,283.00",Revenue,INSIGHT UK,00120744
South Ribble Council,http://statistics.data.gov.uk/doc/local-authority/30UN,Information Services,Peripherals,4243,WinSvrSTDCore ALNG LicSAPk MVL 2Lic CoreLic,27/01/2017,0000429524,171.44,Revenue,INSIGHT UK,00120744
South Ribble Council,http://statistics.data.gov.uk/doc/local-authority/30UN,Neighbourhood Admin & Support,Materials General,4040,PERMANENT POTHOLE REPAIR - TUB - Special,06/01/2017,0000429037,353.52,Revenue,INSTARMAC GROUP PLC,00024905
South Ribble Council,http://statistics.data.gov.uk/doc/local-authority/30UN,Property Services,Rep & Maint Premises,2020,Moss Side Depot to carry out the inspection of the BMS system to the boiler room to identify and remedy the issue affecting ,13/01/2017,0000429204,261.25,Revenue,JBC CONTROL SYSTEM,130816
South Ribble Council,http://statistics.data.gov.uk/doc/local-authority/30UN,HR & Communications,Other Misc,4851,TRANSCRIPTION SERVICE,11/01/2017,0000429155,"1,186.80",Revenue,JML CONSULTANTS UK LTD T/A TYPEOUT,132148
South Ribble Council,http://statistics.data.gov.uk/doc/local-authority/30UN,Planning,Advertising,4841,Press notices for planning applications,04/01/2017,0000429017,656.25,Revenue,JOHNSTON PUBLISHING (NORTH WEST),00011345
South Ribble Council,http://statistics.data.gov.uk/doc/local-authority/30UN,Planning,Advertising,4841,Press notices for planning applications,04/01/2017,0000429018,656.25,Revenue,JOHNSTON PUBLISHING (NORTH WEST),00011345
South Ribble Council,http://statistics.data.gov.uk/doc/local-authority/30UN,Planning,Advertising,4841,Press notices for planning applications,18/01/2017,0000429280,525.00,Revenue,JOHNSTON PUBLISHING (NORTH WEST),00011345
South Ribble Council,http://statistics.data.gov.uk/doc/local-authority/30UN,Planning,Advertising,4841,Press notices for planning applications,20/01/2017,0000429384,551.25,Revenue,JOHNSTON PUBLISHING (NORTH WEST),00011345
South Ribble Council,http://statistics.data.gov.uk/doc/local-authority/30UN,Planning,Advertising,4841,Press notices for planning applications,25/01/2017,0000429446,551.25,Revenue,JOHNSTON PUBLISHING (NORTH WEST),00011345
South Ribble Council,http://statistics.data.gov.uk/doc/local-authority/30UN,Planning,Advertising,4841,Press notices for planning applications,25/01/2017,0000429447,498.75,Revenue,JOHNSTON PUBLISHING (NORTH WEST),00011345
South Ribble Council,http://statistics.data.gov.uk/doc/local-authority/30UN,Planning,Professional Fees,4510,South Ribble Borough Council Strategic Housing Land Availability Assessment Viability Report.Preparation of a Viability Report,18/01/2017,0000429267,"8,000.00",Revenue,Keppie Massie,131948
South Ribble Council,http://statistics.data.gov.uk/doc/local-authority/30UN,Planning,Professional Fees,4510,Professional services in relation to 07/2013/0548/FUL - Response to a further letter provided by the applicant concerning the Viab,18/01/2017,0000429336,250.00,Revenue,Keppie Massie,131948
South Ribble Council,http://statistics.data.gov.uk/doc/local-authority/30UN,Area 2 - Waste Transport/Eastern & Central Teams,Waste Disposal Charges,5112,September 2016 - Incineration of Clinical Waste.,06/01/2017,0000428924,750.31,Revenue,LANCASHIRE TEACHING FT,00120715
South Ribble Council,http://statistics.data.gov.uk/doc/local-authority/30UN,Area 2 - Waste Transport/Eastern & Central Teams,Waste Disposal Charges,5112,October 2016 - Incineration of Clinical Waste,13/01/2017,0000429177,647.90,Revenue,LANCASHIRE TEACHING FT,00120715
South Ribble Council,http://statistics.data.gov.uk/doc/local-authority/30UN,Revenues Plus,Balance Sheet,0008,refund payment made in error,04/01/2017,0000428976,920.15,Revenue,LANCS COUNTY COUNCIL,00041645
South Ribble Council,http://statistics.data.gov.uk/doc/local-authority/30UN,Legal,Other Local Authorities,4530,LAND CHARGES - NOVEMBER 2016,11/01/2017,0000429199,"1,465.50",Revenue,LANCS COUNTY COUNCIL,00041645
South Ribble Council,http://statistics.data.gov.uk/doc/local-authority/30UN,Legal,Other Local Authorities,4530,LAND CHARGES - DECEMBER 2016,11/01/2017,0000429199,649.00,Revenue,LANCS COUNTY COUNCIL,00041645
South Ribble Council,http://statistics.data.gov.uk/doc/local-authority/30UN,Regeneration,Capital Expenditure,C234,Feeder pillar installation,25/01/2017,0000429201,"1,183.40",Revenue,LANCS COUNTY COUNCIL,00041645
South Ribble Council,http://statistics.data.gov.uk/doc/local-authority/30UN,Housing,Cap Grant- Improve Grants,C570,Supply and install Geberit Aquaclean 8000 plus care as per your quote of 3780.00,18/01/2017,0000429281,"3,150.00",Revenue,LANCS COUNTY COUNCIL,00041645
South Ribble Council,http://statistics.data.gov.uk/doc/local-authority/30UN,Housing,Cap Grant- Improve Grants,C570,"Supply and install stair lift at ADDRESS REDACTED as per your quote of 2052.94 Customer Contribution of 393.06 to be paid",18/01/2017,0000429282,"2,052.94",Revenue,LANCS COUNTY COUNCIL,00041645
South Ribble Council,http://statistics.data.gov.uk/doc/local-authority/30UN,Housing,Cap Grant- Improve Grants,C570,"Supply and install stair lift at ADDRESS REDACTED as per your quote of - 2939.43 Customer has a contribution of 849.57",18/01/2017,0000429283,"2,939.43",Revenue,LANCS COUNTY COUNCIL,00041645
South Ribble Council,http://statistics.data.gov.uk/doc/local-authority/30UN,Housing,Cap Grant- Improve Grants,C570,Supply and Install Stairlift at ADDRESS REDACTED,18/01/2017,0000429302,"2,747.50",Revenue,LANCS COUNTY COUNCIL,00041645
South Ribble Council,http://statistics.data.gov.uk/doc/local-authority/30UN,Area 2 - Waste Transport/Eastern & Central Teams,Materials General,4040,"exhaust pipe, tighten",04/01/2017,0000428958,318.75,Revenue,LANCS DAF,00026424
South Ribble Council,http://statistics.data.gov.uk/doc/local-authority/30UN,Information Services,Peripherals,4244,Historical National Grid mapping annual licence Jan 17 - Jan 18,13/01/2017,0000429211,250.00,Revenue,LANDMARK INFORMATION GROUP,00105840
South Ribble Council,http://statistics.data.gov.uk/doc/local-authority/30UN,Planning,Professional Fees,4510,Former New Mill Site off Wesley Street - 07/2016/0690/REM and 07/2012/0729/OUT - Final Report,18/01/2017,0000429354,"1,000.00",Revenue,LEA HOUGH & CO,131196
South Ribble Council,http://statistics.data.gov.uk/doc/local-authority/30UN,Property Services,Rep & Maint Premises,2020,To supply and fit new roof lights to unit ADDRESS REDACTED as detailed in your quotation JEH/E/6170,18/01/2017,0000429227,"1,053.60",Revenue,MAINCOAT LTD,00099244
South Ribble Council,http://statistics.data.gov.uk/doc/local-authority/30UN,Property Services,Rep & Maint Premises,2020,materials,18/01/2017,0000429227,"1,580.40",Revenue,MAINCOAT LTD,00099244
South Ribble Council,http://statistics.data.gov.uk/doc/local-authority/30UN,Area 1 - Penwortham Western Parishes,Professional Fees,4521,PROVISION OF STRAY DOG SERVICE - TO COVER DECEMBER 2016,13/01/2017,0000429104,479.76,Revenue,MORNINGSIDE KENNELS,00067755
South Ribble Council,http://statistics.data.gov.uk/doc/local-authority/30UN,Environmental Health,Licence Fees,488B,4th qtr,18/01/2017,0000429291,"1,375.00",Revenue,MOSS SIDE COMMUNITY FORUM,00098724
South Ribble Council,http://statistics.data.gov.uk/doc/local-authority/30UN,Planning,Legal,4821,"Penwortham Mills, Lostock Hall, Lancashire.; 29th November 2016 - Advising in Conference - Prep 2hours - Con 2hrs",18/01/2017,0000429266,900.00,Revenue,MR IAN PONTER,131194
South Ribble Council,http://statistics.data.gov.uk/doc/local-authority/30UN,Development Enterprise & Comm Mgnt,Other Misc,4851,"Marquee & gazebo hire for Leyland Christmas Festival on 26th November 2016 @ 1,016",25/01/2017,0000429385,980.00,Revenue,NATIONWIDE MARQUEE HIRE LTD,130006
South Ribble Council,http://statistics.data.gov.uk/doc/local-authority/30UN,Area 2 - Waste Transport/Eastern & Central Teams,External Contractors Charges,4570,STEAM CLEAN - VK09AHJ - JFC7788 (5/12) PD,13/01/2017,0000429074,65.00,Revenue,NAYLORS TRANSPORT (LEYLAND) ltd,00114828
South Ribble Council,http://statistics.data.gov.uk/doc/local-authority/30UN,Area 2 - Waste Transport/Eastern & Central Teams,External Contractors Charges,4570,STEAM CLEAN - VN10DKL - JFC7789 (6/12) PD,13/01/2017,0000429074,65.00,Revenue,NAYLORS TRANSPORT (LEYLAND) ltd,00114828
South Ribble Council,http://statistics.data.gov.uk/doc/local-authority/30UN,Area 2 - Waste Transport/Eastern & Central Teams,External Contractors Charges,4570,STEAM CLEAN - VO65KPZ - JFC7790 (13/12) PD,13/01/2017,0000429074,65.00,Revenue,NAYLORS TRANSPORT (LEYLAND) ltd,00114828
South Ribble Council,http://statistics.data.gov.uk/doc/local-authority/30UN,Area 2 - Waste Transport/Eastern & Central Teams,External Contractors Charges,4570,STEAM CLEAN - PJ62UCL - JFC 7791 (14/12) PD,13/01/2017,0000429074,65.00,Revenue,NAYLORS TRANSPORT (LEYLAND) ltd,00114828
South Ribble Council,http://statistics.data.gov.uk/doc/local-authority/30UN,Area 2 - Waste Transport/Eastern & Central Teams,External Contractors Charges,4570,STEAM CLEAN - PJ62UCM - JFC7792 (15/12) PD,13/01/2017,0000429074,65.00,Revenue,NAYLORS TRANSPORT (LEYLAND) ltd,00114828
South Ribble Council,http://statistics.data.gov.uk/doc/local-authority/30UN,Area 2 - Waste Transport/Eastern & Central Teams,External Contractors Charges,4570,STEAM CLEAN - NX58FJZ - JFC7794 (16/12) PD,13/01/2017,0000429074,75.00,Revenue,NAYLORS TRANSPORT (LEYLAND) ltd,00114828
South Ribble Council,http://statistics.data.gov.uk/doc/local-authority/30UN,Area 2 - Waste Transport/Eastern & Central Teams,External Contractors Charges,4570,STEAM CLEAN - VO65 KRE - JFC7795 (21/12) PD,13/01/2017,0000429074,65.00,Revenue,NAYLORS TRANSPORT (LEYLAND) ltd,00114828
South Ribble Council,http://statistics.data.gov.uk/doc/local-authority/30UN,Area 2 - Waste Transport/Eastern & Central Teams,External Contractors Charges,4570,STEAM CLEAN - PO13UUM - JFC7796 (29/12) PD,13/01/2017,0000429074,65.00,Revenue,NAYLORS TRANSPORT (LEYLAND) ltd,00114828
South Ribble Council,http://statistics.data.gov.uk/doc/local-authority/30UN,Property Services,Client Internal Charges,4590,"2016 / 2017 - Weekly waste removal at Leyland Market, @ 79.49 plus ad hoc pick ups as required.",13/01/2017,0000429191,397.45,Revenue,NEALES WASTE MANAGEMENT,130129
South Ribble Council,http://statistics.data.gov.uk/doc/local-authority/30UN,Homelessness,Professional Fees,4520,management fees for temporary accommodation for year to April 2017,18/01/2017,0000429215,"7,480.59",Revenue,NEW PROGRESS HOUSING ASSOC ref:DNSOU001,00030135
South Ribble Council,http://statistics.data.gov.uk/doc/local-authority/30UN,Homelessness,Contributions,4730,FT Homeless Prevention Rent 27th November 2016,18/01/2017,0000429256,"3,150.85",Revenue,NEW PROGRESS HOUSING ASSOC ref:DNSOU001,00030135
South Ribble Council,http://statistics.data.gov.uk/doc/local-authority/30UN,Environmental Health,Operational Furniture & Equip,4010,200 MOGO printed plates per NAME REDACTED,18/01/2017,0000429316,790.90,Revenue,NEWAUTO LTD T/A MOGO (UK),00081566
South Ribble Council,http://statistics.data.gov.uk/doc/local-authority/30UN,Area 1 - Penwortham Western Parishes,Professional Fees,4514,DEPLOYMENT OF OFFICERS DECEMBER 2016,11/01/2017,0000429140,979.98,Revenue,NSL LTD,00116868
South Ribble Council,http://statistics.data.gov.uk/doc/local-authority/30UN,Area 1 - Penwortham Western Parishes,Other Misc,4855,CASH COLLECTIONS AND RINGO TRANSACTIONS DECEMBER 2016,11/01/2017,0000429140,218.89,Revenue,NSL LTD,00116868
South Ribble Council,http://statistics.data.gov.uk/doc/local-authority/30UN,Environmental Health,Professional Fees,4522,gov fee,13/01/2017,0000429164,440.00,Revenue,Personnel Checks,131483
South Ribble Council,http://statistics.data.gov.uk/doc/local-authority/30UN,Environmental Health,Professional Fees,4522,admin fee,13/01/2017,0000429164,133.30,Revenue,Personnel Checks,131483
South Ribble Council,http://statistics.data.gov.uk/doc/local-authority/30UN,Neighbourhood Admin & Support,Vehicle Running Costs,3132,FUEL NOVEMBER 2016,06/01/2017,0000428974,416.73,Revenue,PETROMEX MILLBROOK WAY SERVICE STATION,00062572
South Ribble Council,http://statistics.data.gov.uk/doc/local-authority/30UN,Neighbourhood Admin & Support,Vehicle Running Costs,3132,FUEL FOR OCTOBER 2016,18/01/2017,0000429271,284.93,Revenue,PETROMEX MILLBROOK WAY SERVICE STATION,00062572
South Ribble Council,http://statistics.data.gov.uk/doc/local-authority/30UN,Housing,Cap Grant- Improve Grants,C570,DFG WORKS AT ADDRESS REDACTED,25/01/2017,0000429376,"4,142.00",Revenue,Phil Keane,132131
South Ribble Council,http://statistics.data.gov.uk/doc/local-authority/30UN,Property Services,Operational Furniture & Equip,4012,"2016 / 2017 contract for the provision of sanitary services at Moss Side Depot, Bison Place, Leyland",06/01/2017,0000429051,405.60,Revenue,PHS GROUP PLC,00031309
South Ribble Council,http://statistics.data.gov.uk/doc/local-authority/30UN,Property Services,Operational Furniture & Equip,4012,2016 / 2017 contract for the provision of sanitary services at the Civic Centre,06/01/2017,0000429052,915.03,Revenue,PHS GROUP PLC,00031309
South Ribble Council,http://statistics.data.gov.uk/doc/local-authority/30UN,Information Services,Stationery,4133,"50,000 Evolution Everyday A4 80gm 5000 Evolution Everyday A3 80gm",04/01/2017,0000428986,273.15,Revenue,PREMIER PAPER GROUP LTD,00022606
South Ribble Council,http://statistics.data.gov.uk/doc/local-authority/30UN,Information Services,Stationery,4133,"75,000 sheets Evolution Everyday A4 80gm 2500 sheets Evolution Everyday A3 80gm",20/01/2017,0000429365,378.00,Revenue,PREMIER PAPER GROUP LTD,00022606
South Ribble Council,http://statistics.data.gov.uk/doc/local-authority/30UN,Regeneration,Other Misc,4851,Photoboard design printed and mounted to foamalite,06/01/2017,0000429054,89.81,Revenue,Preston City Council,131913
South Ribble Council,http://statistics.data.gov.uk/doc/local-authority/30UN,Regeneration,Other Misc,4861,Production of a whats on guide a3 folded to a4 booklet Quantity: 6200,06/01/2017,0000429054,422.27,Revenue,Preston City Council,131913
South Ribble Council,http://statistics.data.gov.uk/doc/local-authority/30UN,Regeneration,Other Misc,4861,5000 Christmas `What`s On Guide` (Leyland) A3 folded to A4 pdf design to be submitted by email,06/01/2017,0000429054,377.33,Revenue,Preston City Council,131913
South Ribble Council,http://statistics.data.gov.uk/doc/local-authority/30UN,Regeneration,Other Misc,4861,Printing of 8000 Western Christmas What`s on Guides A3 folded to A4 booklet,06/01/2017,0000429054,496.16,Revenue,Preston City Council,131913
South Ribble Council,http://statistics.data.gov.uk/doc/local-authority/30UN,Area 2 - Waste Transport/Eastern & Central Teams,Materials General,4040,TR170,13/01/2017,0000429163,506.50,Revenue,PRESTON TYRE SPECIALISTS,00109516
South Ribble Council,http://statistics.data.gov.uk/doc/local-authority/30UN,Democratic Services,Printing,4127,"12,000 South Ribble HEF outgoing envelopes",18/01/2017,0000429258,435.40,Revenue,PRINT IMAGE NETWORK LTD,00089199
South Ribble Council,http://statistics.data.gov.uk/doc/local-authority/30UN,Property Services,Rep & Maint Premises,2020,"To measure, supply & fit a double glazed curtain wall pane as existing at Leyland Leisure Centre including hire of a scissor lift.",27/01/2017,0000429532,830.00,Revenue,Raymond Wood Commercial Ltd T/A LDG Contracts,132127
South Ribble Council,http://statistics.data.gov.uk/doc/local-authority/30UN,Property Services,Rep & Maint Premises,2020,"Please clear the grease trap at the Civic centre, provide a WTN on completion",25/01/2017,0000429431,295.00,Revenue,RED ROSE BUILDING MAINTENANCE,00085410
South Ribble Council,http://statistics.data.gov.uk/doc/local-authority/30UN,Property Services,Rep & Maint Premises,2020,"Carry out general maintenance works  at Moss Side Community centre as per attached schedule : 				 	Schedulk",25/01/2017,0000429432,648.00,Revenue,RED ROSE BUILDING MAINTENANCE,00085410
South Ribble Council,http://statistics.data.gov.uk/doc/local-authority/30UN,Property Services,Rep & Maint Premises,2020,materials,25/01/2017,0000429432,135.00,Revenue,RED ROSE BUILDING MAINTENANCE,00085410
South Ribble Council,http://statistics.data.gov.uk/doc/local-authority/30UN,Property Services,Rep & Maint Premises,2020,"Please clear the dog wash, Worden Park using the tanker, provide a WTN on completion",25/01/2017,0000429433,520.00,Revenue,RED ROSE BUILDING MAINTENANCE,00085410
South Ribble Council,http://statistics.data.gov.uk/doc/local-authority/30UN,Building Control,Professional Fees,4510,Annual Support Renewal,11/01/2017,0000429149,"1,598.00",Revenue,RESOLUTION DATA MANAGEMENT LTD,00095439
South Ribble Council,http://statistics.data.gov.uk/doc/local-authority/30UN,ZSUSPShared Financial Services,Professional Fees,4520,Annual Administration Charge for Business Rates Pool,11/01/2017,0000428630,"2,000.00",Revenue,Ribble Valley Borough Council,131651
South Ribble Council,http://statistics.data.gov.uk/doc/local-authority/30UN,HR & Communications,Payroll Suspense,1741,SUBSCRIPTION FOR NAME REDACTED 2017 RICS NUMBER 0083437,04/01/2017,0000428965,512.00,Revenue,RICS,00033307
South Ribble Council,http://statistics.data.gov.uk/doc/local-authority/30UN,HR & Communications,Payroll Suspense,1741,ANNUAL SUBSCRIPTION FOR 2017 NAME REDACTED,18/01/2017,0000429315,290.00,Revenue,RTPI,00033491
South Ribble Council,http://statistics.data.gov.uk/doc/local-authority/30UN,Property Services,Energy Costs,2303,26/8/16 to 6/12/16,25/01/2017,0000428862,727.96,Revenue,SCOTTISH HYDRO ELECTRIC,130051
South Ribble Council,http://statistics.data.gov.uk/doc/local-authority/30UN,Property Services,Energy Costs,2307,ccl,25/01/2017,0000428862,34.79,Revenue,SCOTTISH HYDRO ELECTRIC,130051
South Ribble Council,http://statistics.data.gov.uk/doc/local-authority/30UN,Property Services,Energy Costs,2304,19/12/15 to 30/3/16,18/01/2017,0000429296,621.55,Revenue,SCOTTISH HYDRO ELECTRIC,130051
South Ribble Council,http://statistics.data.gov.uk/doc/local-authority/30UN,Property Services,Energy Costs,2304,23/6/16 to 22/9/16,18/01/2017,0000429297,480.48,Revenue,SCOTTISH HYDRO ELECTRIC,130051
South Ribble Council,http://statistics.data.gov.uk/doc/local-authority/30UN,Property Services,Energy Costs,2304,22/9/16 to 20/12/16,18/01/2017,0000429298,"1,643.98",Revenue,SCOTTISH HYDRO ELECTRIC,130051
South Ribble Council,http://statistics.data.gov.uk/doc/local-authority/30UN,Property Services,Energy Costs,2307,ccl,18/01/2017,0000429298,116.82,Revenue,SCOTTISH HYDRO ELECTRIC,130051
South Ribble Council,http://statistics.data.gov.uk/doc/local-authority/30UN,Property Services,Energy Costs,2304,6/12/16 to 5/1/17,18/01/2017,0000429299,"1,474.83",Revenue,SCOTTISH HYDRO ELECTRIC,130051
South Ribble Council,http://statistics.data.gov.uk/doc/local-authority/30UN,Property Services,Energy Costs,2307,ccl,18/01/2017,0000429299,97.21,Revenue,SCOTTISH HYDRO ELECTRIC,130051
South Ribble Council,http://statistics.data.gov.uk/doc/local-authority/30UN,Property Services,Energy Costs,2304,31/3/16 to 22/6/16,18/01/2017,0000429322,457.51,Revenue,SCOTTISH HYDRO ELECTRIC,130051
South Ribble Council,http://statistics.data.gov.uk/doc/local-authority/30UN,Property Services,Energy Costs,2303,2/10/16 to 1/1/17,25/01/2017,0000429398,419.56,Revenue,SCOTTISH HYDRO ELECTRIC,130051
South Ribble Council,http://statistics.data.gov.uk/doc/local-authority/30UN,Property Services,Energy Costs,2307,ccl,25/01/2017,0000429398,19.89,Revenue,SCOTTISH HYDRO ELECTRIC,130051
South Ribble Council,http://statistics.data.gov.uk/doc/local-authority/30UN,Property Services,Energy Costs,2303,2/10/16 to 1/1/17,25/01/2017,0000429404,280.83,Revenue,SCOTTISH HYDRO ELECTRIC,130051
South Ribble Council,http://statistics.data.gov.uk/doc/local-authority/30UN,Property Services,Energy Costs,2303,1/12/16 to 31/12/16,25/01/2017,0000429405,442.22,Revenue,SCOTTISH HYDRO ELECTRIC,130051
South Ribble Council,http://statistics.data.gov.uk/doc/local-authority/30UN,Property Services,Energy Costs,2307,ccl,25/01/2017,0000429405,21.65,Revenue,SCOTTISH HYDRO ELECTRIC,130051
South Ribble Council,http://statistics.data.gov.uk/doc/local-authority/30UN,Property Services,Energy Costs,2303,1/12/16 to 31/12/16,25/01/2017,0000429406,"1,096.28",Revenue,SCOTTISH HYDRO ELECTRIC,130051
South Ribble Council,http://statistics.data.gov.uk/doc/local-authority/30UN,Property Services,Energy Costs,2307,ccl,25/01/2017,0000429406,55.67,Revenue,SCOTTISH HYDRO ELECTRIC,130051
South Ribble Council,http://statistics.data.gov.uk/doc/local-authority/30UN,Property Services,Energy Costs,2303,1/12/16 to 31/12/16,25/01/2017,0000429408,"2,835.09",Revenue,SCOTTISH HYDRO ELECTRIC,130051
South Ribble Council,http://statistics.data.gov.uk/doc/local-authority/30UN,Property Services,Energy Costs,2307,ccl,25/01/2017,0000429408,148.35,Revenue,SCOTTISH HYDRO ELECTRIC,130051
South Ribble Council,http://statistics.data.gov.uk/doc/local-authority/30UN,Property Services,Energy Costs,2303,2/10/16 to 1/1/17,25/01/2017,0000429409,338.34,Revenue,SCOTTISH HYDRO ELECTRIC,130051
South Ribble Council,http://statistics.data.gov.uk/doc/local-authority/30UN,Property Services,Energy Costs,2303,1/12/16 to 31/12/16,25/01/2017,0000429413,"1,956.20",Revenue,SCOTTISH HYDRO ELECTRIC,130051
South Ribble Council,http://statistics.data.gov.uk/doc/local-authority/30UN,Property Services,Energy Costs,2307,ccl,25/01/2017,0000429413,106.44,Revenue,SCOTTISH HYDRO ELECTRIC,130051
South Ribble Council,http://statistics.data.gov.uk/doc/local-authority/30UN,Information Services,Professional Fees,4520,Shredding of Confidential Waste 2016/17,04/01/2017,0000428969,420.61,Revenue,SHRED-IT LTD,00109134
South Ribble Council,http://statistics.data.gov.uk/doc/local-authority/30UN,Information Services,Professional Fees,4520,Shredding of Confidential Waste 2016/17,18/01/2017,0000429260,325.97,Revenue,SHRED-IT LTD,00109134
South Ribble Council,http://statistics.data.gov.uk/doc/local-authority/30UN,Planning,Professional Fees,4510,Application by NAME REDACTED for a Certificate of Lawfulness for use of land as a Microlight Airfield at Longfold Farm,18/01/2017,0000429334,"2,500.00",Revenue,Simon Pickles LandmarkChambers,132158
South Ribble Council,http://statistics.data.gov.uk/doc/local-authority/30UN,Development Enterprise & Comm Mgnt,Advertising,4842,ADDRESS REDACTED Museum Christmas Lunch,06/01/2017,0000428977,510.79,Revenue,SLATERS CATERING LTD,131032
South Ribble Council,http://statistics.data.gov.uk/doc/local-authority/30UN,Environmental Health,External Contractors Charges,4570,Clean of ADDRESS REDACTED - per NAME REDACTED,18/01/2017,0000429286,"1,200.00",Revenue,SMJ CONTRACT CLEANING,130044
South Ribble Council,http://statistics.data.gov.uk/doc/local-authority/30UN,Area 3 - Parks/Leyland East West,Capital Expenditure,C230,"REPAIR AND RESTORATION OF FOUNTAIN BOWL, FORMAL GARDENS, WORDEN PARK, LEYLAND",20/01/2017,0000428633,"12,668.00",Revenue,Specialist UK Restoration Ltd,132056
South Ribble Council,http://statistics.data.gov.uk/doc/local-authority/30UN,Area 3 - Parks/Leyland East West,Capital Expenditure,C230,paint coating,20/01/2017,0000428633,"1,475.00",Revenue,Specialist UK Restoration Ltd,132056
South Ribble Council,http://statistics.data.gov.uk/doc/local-authority/30UN,Area 3 - Parks/Leyland East West,Capital Expenditure,C230,Capital Expenditure,20/01/2017,0000429331,"12,668.00",Revenue,Specialist UK Restoration Ltd,132056
South Ribble Council,http://statistics.data.gov.uk/doc/local-authority/30UN,Development Enterprise & Comm Mgnt,Consultancy Fees,4541,Facility Planning Model - Local Assessment for South Ribble,27/01/2017,0000429457,"1,650.00",Revenue,SPORT ENGLAND,131198
South Ribble Council,http://statistics.data.gov.uk/doc/local-authority/30UN,Development Enterprise & Comm Mgnt,Other Misc,4851,Initial payment to cover skills project development hours/meetings for schools - Ref Leyland Truck Trail 2017,25/01/2017,0000429355,"5,000.00",Revenue,STEMFirst Ltd,132095
South Ribble Council,http://statistics.data.gov.uk/doc/local-authority/30UN,Area 2 - Waste Transport/Eastern & Central Teams,Cap Vehicles,C451,BRAKE TESTER,25/01/2017,0000429169,"27,454.00",Revenue,Tecalemit Garage Equipment Company Limited,132135
South Ribble Council,http://statistics.data.gov.uk/doc/local-authority/30UN,Homelessness,Contractors Charges 5,5311,Temporary accommodation ADDRESS REDACTED 48 nights 4/10/16-20/11/2016,27/01/2017,0000429496,"1,440.00",Revenue,Temporary Housing Solutions Ltd,132118
South Ribble Council,http://statistics.data.gov.uk/doc/local-authority/30UN,Area 2 - Waste Transport/Eastern & Central Teams,Materials General,4040,3 switches BIN 374,11/01/2017,0000429134,977.07,Revenue,TERBERG MATEC UK LTD,00058625
South Ribble Council,http://statistics.data.gov.uk/doc/local-authority/30UN,Area 2 - Waste Transport/Eastern & Central Teams,Materials General,4040,delivery charge,11/01/2017,0000429134,14.50,Revenue,TERBERG MATEC UK LTD,00058625
South Ribble Council,http://statistics.data.gov.uk/doc/local-authority/30UN,Area 2 - Waste Transport/Eastern & Central Teams,Materials General,4040,ADDRESS REDACTED - VK09 AHJ - JFC8118 - AW,25/01/2017,0000429427,398.10,Revenue,TERBERG MATEC UK LTD,00058625
South Ribble Council,http://statistics.data.gov.uk/doc/local-authority/30UN,Legal,Publications,4142,alridge R50,11/01/2017,0000429058,408.00,Revenue,THOMSON REUTERS,00034979
South Ribble Council,http://statistics.data.gov.uk/doc/local-authority/30UN,Legal,Publications,4142,"Current billing period - Dec 01, 2016 - Dec 31, 2016 Online Subscription - Westlaw UK Services Invoice covers subscription",11/01/2017,0000429196,"2,249.44",Revenue,THOMSON REUTERS,00034979
South Ribble Council,http://statistics.data.gov.uk/doc/local-authority/30UN,Housing,Contributions,4730,Supply and Install UPVC double glazing as part of the winter warmth scheme,11/01/2017,0000428807,866.67,Revenue,TRADE WINDOWS & CONSERVATORIES,00119823
South Ribble Council,http://statistics.data.gov.uk/doc/local-authority/30UN,Area 3 - Parks/Leyland East West,Materials General,4040,"73 NO. OAK JOISTS (3000 X 175 X 50MM) @ 1054.12 DELIVERY CHARGE:  99.00",18/01/2017,0000429228,"1,153.12",Revenue,UK Timber Ltd,131931
South Ribble Council,http://statistics.data.gov.uk/doc/local-authority/30UN,Property Services,Water Charges,2511,14/5/16 to 11/8/16,04/01/2017,0000428996,"3,081.75",Revenue,UNITED UTILITIES WATER PLC,00029845
South Ribble Council,http://statistics.data.gov.uk/doc/local-authority/30UN,Property Services,Water Charges,2511,12/8/16 to 13/11/16,04/01/2017,0000428997,"1,611.87",Revenue,UNITED UTILITIES WATER PLC,00029845
South Ribble Council,http://statistics.data.gov.uk/doc/local-authority/30UN,Property Services,Water Charges,2511,19/8/16 to 10/11/16,25/01/2017,0000429470,358.98,Revenue,UNITED UTILITIES WATER PLC,00029845
South Ribble Council,http://statistics.data.gov.uk/doc/local-authority/30UN,Property Services,Rep & Maint Premises,2020,To inspect all the AC equipment at the civic centre as per  your TM44 quotation dated 5th December 2016.(5 year plan),11/01/2017,0000429138,875.00,Revenue,UNIVERSAL COOLING LTD,130914
South Ribble Council,http://statistics.data.gov.uk/doc/local-authority/30UN,Area 2 - Waste Transport/Eastern & Central Teams,Materials General,4040,"Vanliner BJ66 MKL, JFC8009.",11/01/2017,0000429194,390.00,Revenue,Vanliners Limited,131513
South Ribble Council,http://statistics.data.gov.uk/doc/local-authority/30UN,Area 2 - Waste Transport/Eastern & Central Teams,Materials General,4040,"Vanliner BJ66 SKD, JFC8010,",11/01/2017,0000429194,390.00,Revenue,Vanliners Limited,131513
South Ribble Council,http://statistics.data.gov.uk/doc/local-authority/30UN,Area 2 - Waste Transport/Eastern & Central Teams,Materials General,4040,"Vanliner BJ66 SKU, JFC8011",11/01/2017,0000429194,125.00,Revenue,Vanliners Limited,131513
South Ribble Council,http://statistics.data.gov.uk/doc/local-authority/30UN,Area 2 - Waste Transport/Eastern & Central Teams,Materials General,4040,"Vanliner BJ66 SKK, JFC8012",11/01/2017,0000429194,125.00,Revenue,Vanliners Limited,131513
South Ribble Council,http://statistics.data.gov.uk/doc/local-authority/30UN,Area 2 - Waste Transport/Eastern & Central Teams,External Contractors Charges,4570,1 SPEC REPAIR BJ66 SKU JFC8117,25/01/2017,0000429460,265.00,Revenue,Vanliners Limited,131513
South Ribble Council,http://statistics.data.gov.uk/doc/local-authority/30UN,Property Services,Operational Furniture & Equip,4012,2016 / 2017 rental fees for vending machines at the Civic Centre from September 2016 to March 2017,06/01/2017,0000429016,322.09,Revenue,VENDING ENTERPRISES,00101501
South Ribble Council,http://statistics.data.gov.uk/doc/local-authority/30UN,Information Services,Peripherals,4269,"Annual purchase order for ISDN lines, line rentals & call charges for period 01/04/16 - 31/03/17",06/01/2017,0000429122,"1,186.90",Revenue,VODAFONE RE:CABLE & WIRELESS UK,130810
South Ribble Council,http://statistics.data.gov.uk/doc/local-authority/30UN,Information Services,Peripherals,4247,"Annual purchase order for link, internet & router for period 01/04/16 - 31/03/17",06/01/2017,0000429123,"1,312.66",Revenue,VODAFONE RE:CABLE & WIRELESS UK,130810
South Ribble Council,http://statistics.data.gov.uk/doc/local-authority/30UN,Information Services,Processing-Internal,4212,Annual purchase order for GSi Convergence Framework for period 01/04/16 - 31/03/17,06/01/2017,0000429124,"2,576.55",Revenue,VODAFONE RE:CABLE & WIRELESS UK,130810
South Ribble Council,http://statistics.data.gov.uk/doc/local-authority/30UN,HR & Communications,Other Misc,4851,REVIEW OF INVESTIGATIVE PROCESS,04/01/2017,0000428975,472.50,Revenue,WEIGHTMANS LLP,00120867
South Ribble Council,http://statistics.data.gov.uk/doc/local-authority/30UN,HR & Communications,Advertising,4848,WORK CARRIED OUT ON SOCIAL MEDIA ISSUES,11/01/2017,0000429158,288.00,Revenue,WEIGHTMANS LLP,00120867
South Ribble Council,http://statistics.data.gov.uk/doc/local-authority/30UN,Area 2 - Waste Transport/Eastern & Central Teams,Cap Vehicles,C440,5 x NV400 Large Vans,04/01/2017,0000428982,"16,851.90",Revenue,Westway Nissan,131964
South Ribble Council,http://statistics.data.gov.uk/doc/local-authority/30UN,Area 2 - Waste Transport/Eastern & Central Teams,Cap Vehicles,C440,reg fee 12 months RFL,04/01/2017,0000428982,285.00,Revenue,Westway Nissan,131964
South Ribble Council,http://statistics.data.gov.uk/doc/local-authority/30UN,Area 2 - Waste Transport/Eastern & Central Teams,Cap Vehicles,C440,5 x NV400 Large Vans,04/01/2017,0000428987,"17,101.90",Revenue,Westway Nissan,131964
South Ribble Council,http://statistics.data.gov.uk/doc/local-authority/30UN,Area 2 - Waste Transport/Eastern & Central Teams,Cap Vehicles,C440,reg fee 12 months RFL,04/01/2017,0000428987,285.00,Revenue,Westway Nissan,131964
South Ribble Council,http://statistics.data.gov.uk/doc/local-authority/30UN,Area 2 - Waste Transport/Eastern & Central Teams,Cap Vehicles,C440,5 x NV400 Large Vans,04/01/2017,0000428988,"16,851.90",Revenue,Westway Nissan,131964
South Ribble Council,http://statistics.data.gov.uk/doc/local-authority/30UN,Area 2 - Waste Transport/Eastern & Central Teams,Cap Vehicles,C440,car reg 12months RFL,04/01/2017,0000428988,285.00,Revenue,Westway Nissan,131964
South Ribble Council,http://statistics.data.gov.uk/doc/local-authority/30UN,Area 2 - Waste Transport/Eastern & Central Teams,Cap Vehicles,C440,5 x NV400 Large Vans,04/01/2017,0000428989,"16,851.90",Revenue,Westway Nissan,131964
South Ribble Council,http://statistics.data.gov.uk/doc/local-authority/30UN,Area 2 - Waste Transport/Eastern & Central Teams,Cap Vehicles,C440,car reg 12 months RFL,04/01/2017,0000428989,285.00,Revenue,Westway Nissan,131964
South Ribble Council,http://statistics.data.gov.uk/doc/local-authority/30UN,Area 2 - Waste Transport/Eastern & Central Teams,Cap Vehicles,C440,5 x NV400 Large Vans,04/01/2017,0000428990,"16,851.90",Revenue,Westway Nissan,131964
South Ribble Council,http://statistics.data.gov.uk/doc/local-authority/30UN,Area 2 - Waste Transport/Eastern & Central Teams,Cap Vehicles,C440,car reg 12months RFL,04/01/2017,0000428990,285.00,Revenue,Westway Nissan,131964
South Ribble Council,http://statistics.data.gov.uk/doc/local-authority/30UN,Revenues Plus,Postage,4291,Mail Services Revs,27/01/2017,0000429528,564.64,Revenue,WHISTL  UK LTD,131310
South Ribble Council,http://statistics.data.gov.uk/doc/local-authority/30UN,Revenues Plus,Postage,4291,Mail Services Revs,27/01/2017,0000429537,312.33,Revenue,WHISTL  UK LTD,131310
South Ribble Council,http://statistics.data.gov.uk/doc/local-authority/30UN,Area 3 - Parks/Leyland East West,Grounds Maint Cntrctrs Chgs,4657,Repair rip in the Durascape carpet on the edge of the  SMP Titan on Farington Park - 1m,27/01/2017,0000428420,694.00,Revenue,WICKSTEED LEISURE LTD,00038661
South Ribble Council,http://statistics.data.gov.uk/doc/local-authority/30UN,Area 3 - Parks/Leyland East West,Professional Fees,4520,Hep B Boosters - Neighbourhood Services,06/01/2017,0000429083,725.00,Revenue,WRIGHTINGTON WIGAN & LEIGH NHS FOUNDATION TRUST,131288
South Ribble Council,http://statistics.data.gov.uk/doc/local-authority/30UN,Area 3 - Parks/Leyland East West,Professional Fees,4520,Hep B Boosters - Env Health Employees,06/01/2017,0000429083,139.00,Revenue,WRIGHTINGTON WIGAN & LEIGH NHS FOUNDATION TRUST,131288
South Ribble Council,http://statistics.data.gov.uk/doc/local-authority/30UN,Development Enterprise & Comm Mgnt,Other Misc,485K,"Infographic Design = 225 Content development and project management 170 Business cards  Design, development of chosen",18/01/2017,0000429277,924.00,Revenue,WRITE ANGLE PR & MARKETING LTD,00095303
South Ribble Council,http://statistics.data.gov.uk/doc/local-authority/30UN,Area 3 - Parks/Leyland East West,Grounds Maint Cntrctrs Chgs,4657,90ltr GALVANISED STEEL SLIMLINE LITTER BINS IN BLACK FITTED WITH STAINLESS STEEL TRIANGULAR LOCKS ,06/01/2017,0000428450,"2,699.85",Revenue,Wybone Limited,132121
South Ribble Council,http://statistics.data.gov.uk/doc/local-authority/30UN,Area 3 - Parks/Leyland East West,Grounds Maint Cntrctrs Chgs,4657,160ltr GALVANISED STEEL LITTER BINS IN BLACK FITTED WITH STAINLESS STEEL TRIANGULAR LOCKS ,06/01/2017,0000428450,959.96,Revenue,Wybone Limited,132121
South Ribble Council,http://statistics.data.gov.uk/doc/local-authority/30UN,Planning,Professional Fees,4510,Cuerden Strategic Site - Professional fees (as agreed) For works undertaken up to 02.12.2016 NAME REDACTED 26.00 hours,18/01/2017,0000429318,"3,225.00",Revenue,WYG ENVIRONMENT TRANSPORT LIMITED,130177
